Cogmind - Beta 16 @@@ ROGUE MODE // 2025.11.08 @ 22:02:26 Player: dp-fld Result: Core destroyed Performance ------------- Evolutions (0) 0 Regions Visited (4) 800 Robots Destroyed (23) 115 Value Destroyed (416) 416 Prototype IDs (3) 60 Alien Tech Used (0) 0 Bonus (0) 0 TOTAL SCORE: 1391 Bonus ------- None Cogmind --------- Core Integrity 0/250 Matter 290/300 Energy 90/100 System Corruption 0% Temperature Cool (0) Movement Core (150) Ox2 Location -9/Mines Parts ------- > --- POWER (1) -------- (None) > --- PROPULSION (2) --- (None) > --- UTILITY (2) ------ Bomb Drone Bay (15/16) > --- WEAPON (2) ------- (None) > --- INVENTORY (5) ---- Large Storage Unit Peak State ------------ > --- POWER ------------ (None) > --- PROPULSION ------- (None) > --- UTILITY ---------- Bomb Drone Bay > --- WEAPON ----------- (None) > --- INVENTORY -------- Large Storage Unit [Rating: 14] Favorites ----------- Power Ion Engine Engine Ion Engine Propulsion Aluminum Leg Treads Light Treads Leg Aluminum Leg Wheel Wheel Utility Large Storage Unit Device Cooling System Storage Large Storage Unit Weapon Light Assault Rifle Energy Cannon Particle Cannon Ballistic Gun Light Assault Rifle Launcher Grenade Launcher Impact Weapon Hammer Build | -11 -10 -10 -10 -9 ------- Run | Yrd Mat Min Exi Min Slots Evolved . | . . . . . Power . | . . . . . Propulsion . | . . . . . Utility . | . . . . . Weapon . | . . . . . Parts Attached 31 | 1 24 2 3 1 Power 6 | . 6 . . . Engine 6 | . 6 . . . Core . | . . . . . Reactor . | . . . . . Propulsion 8 | . 6 1 1 . Treads 2 | . 2 . . . Leg 4 | . 4 . . . Wheel 2 | . . 1 1 . Hover . | . . . . . Flight . | . . . . . Utility 8 | 1 4 . 2 1 Device 4 | 1 2 . . 1 Storage 4 | . 2 . 2 . Processor . | . . . . . Hackware . | . . . . . Protection . | . . . . . Artifact . | . . . . . Weapon 9 | . 8 1 . . Energy Gun . | . . . . . Energy Cannon 3 | . 3 . . . Ballistic Gun 4 | . 4 . . . Ballistic Cannon . | . . . . . Launcher 1 | . . 1 . . Special Weapon . | . . . . . Impact Weapon 1 | . 1 . . . Slashing Weapon . | . . . . . Piercing Weapon . | . . . . . Special Melee Weapon . | . . . . . Unidentified Prototypes 1 | . . . . 1 Parts Lost 5 | . . 4 . 1 Power 1 | . . 1 . . Propulsion 3 | . . 2 . 1 Utility . | . . . . . Weapon 1 | . . 1 . . Highest Loss Streak 3 | . . 3 . 1 To Critical Strikes . | . . . . . Average Backups 10 | 6 10 13 3 2 Power 1 | 1 1 . . . Propulsion 2 | 4 3 1 . . Utility 2 | . 2 5 1 1 Weapon 2 | 1 3 5 . . Tool/Special . | . . . . . Unused Backups 26 | . 13 10 1 2 Power 5 | . 3 1 . 1 Propulsion 3 | . 2 1 . . Utility 10 | . 4 4 1 1 Weapon 7 | . 4 3 . . Tool/Special 1 | . . 1 . . Average Slot Usage (%) 89 | . 100 92 32 57 Engine 11 | . 14 12 . . Treads 10 | . 10 19 . . Leg 11 | . 17 . . . Wheel 2 | . . 6 8 14 Device 11 | . 14 13 . . Storage 14 | . 14 13 15 28 Energy Cannon 9 | . 9 16 . . Ballistic Gun 11 | . 17 . . . Launcher 1 | . . 9 . . Impact Weapon 1 | . . . 7 14 Peak Build Rating 14 | 7 12 12 5 14 Average Rating 8 | 6 8 10 3 5 On Entrance 6 | 6 7 11 1 5 Avg Prop Armor Cover (%) 10 | . . 10 . . Naked Turns 99 | . . 22 73 4 Heaviest Build 35 | 11 35 35 26 26 Greatest Support 40 | 20 40 40 10 10 Greatest Overweight (x) 3 | . . 3 2 2 Average Overweight (x) . | . . 1 . 1 Largest Inventory Capacity 15 | 8 15 15 15 15 Average Capacity 11 | 8 11 14 10 14 Most Carried 15 | 6 15 15 5 4 Average Carried 10 | 6 10 14 4 3 Final Capacity 15 | 8 15 5 15 5 Final Carried 15 | 6 15 5 4 1 Class Distribution -------------------- 67% | Mutant 32% | Scavenger-Mutant Dominant Class ---------------- Mutant | -10/Materials Mutant | -10/Mines Mutant | -10/Exiles Mutant | -9/Mines Resources | -11 -10 -10 -10 -9 ----------- Run | Yrd Mat Min Exi Min Matter Collected 953 | 206 484 140 109 14 Remotely . | . . . . . Salvage Created 621 | 26 422 159 . 14 Parts 44 | 3 34 7 . . Haulers Intercepted 1 | . 1 . . . Recyclers Shooed 3 | 1 . 2 . . Parts Field Recycled . | . . . . . Retrieved Matter . | . . . . . Parts Self-Destructed . | . . . . . Prevented . | . . . . . Parts Restored . | . . . . . Kills | -11 -10 -10 -10 -9 ------- Run | Yrd Mat Min Exi Min Combat Hostiles Destroyed 31 | . 14 17 . . Guns 10 | . 10 . . . Cannons 15 | . 4 11 . . AOE 6 | . . 6 . . Classes Destroyed 9 | 1 5 3 . . Worker 2 | . 1 . . 1 Tunneler 2 | 1 . 1 . . Hauler 1 | . 1 . . . Recycler 1 | . . 1 . . Operator 1 | . 1 . . . Swarmer 9 | . 9 . . . Grunt 5 | . 5 . . . Demolisher 2 | . . 2 . . Assembled 15 | . . 15 . . Best Kill Streak 14 | 1 3 14 . 1 Combat Bots Only 14 | . 3 14 . . Max Kills in Single Turn 2 | 1 1 2 . 1 Gunslinging . | . . . . . Exploded 2 | . . 2 . . Melee . | . . . . . Uniques/NPCs Destroyed . | . . . . . Combat | -11 -10 -10 -10 -9 -------- Run | Yrd Mat Min Exi Min Hostile Shots Fired 135 | . 84 33 . 18 Missed 36 | . 22 7 . 7 Hits 99 | . 62 26 . 11 Melee 2 | . . 2 . . Projectile 97 | . 62 24 . 11 AOE 10 | . . 10 . . Damage Taken 1309 | . 497 676 . 136 Core 269 | . 125 67 . 77 Absorbed by Shields . | . . . . . Core Remaining (%) 100 | 100 . . . . Volleys Fired 100 | 6 65 29 . . Largest 2 | 2 2 2 . . Hottest 136 | 40 136 136 . . Shots Fired 173 | 12 113 48 . . Gun 96 | 12 84 . . . Cannon 63 | . 29 34 . . Launcher 14 | . . 14 . . Special . | . . . . . Kinetic 96 | 12 84 . . . Thermal 63 | . 29 34 . . Explosive 14 | . . 14 . . Electromagnetic . | . . . . . Robot Hit Streak 8 | 5 8 4 . . Robot Miss Streak 5 | 1 5 3 . . Penetration Max . | . . . . . Secondary Targets . | . . . . . Shots Hit Robots 96 | 9 63 21 . 3 Core Hits 60 | 2 27 31 . . Critical Kills . | . . . . . Critical Parts Destroyed 1 | . . . . 1 Critical Strikes 1 | . . . . 1 Smash 1 | . . . . 1 Melee Attacks 7 | . 4 . . 3 Impact 7 | . 4 . . 3 Slashing . | . . . . . Piercing . | . . . . . Sneak Attacks 2 | . . . . 2 Combat Hostiles . | . . . . . Follow-up Attacks . | . . . . . Damage Inflicted 1827 | 74 707 908 . 138 Guns 501 | 74 427 . . . Cannons 690 | . 280 410 . . Explosions 498 | . . 498 . . Melee 138 | . . . . 138 Ramming . | . . . . . Kinetic 501 | 74 427 . . . Thermal 690 | . 280 410 . . Explosive 498 | . . 498 . . Electromagnetic . | . . . . . Impact 138 | . . . . 138 Slashing . | . . . . . Piercing . | . . . . . Highest Corruption . | . . . . . Average Corruption . | . . . . . Corruption Purged . | . . . . . Corruption Blocked . | . . . . . Overload Shots . | . . . . . Overflow Damage 80 | . . . . 80 Projectiles . | . . . . . Explosions . | . . . . . Melee 80 | . . . . 80 Knockbacks . | . . . . . Impact . | . . . . . Kinetic . | . . . . . Secondary . | . . . . . Self-Inflicted Damage 16 | . . 16 . . Shots 1 | . . 1 . . Rammed . | . . . . . Targets Rammed . | . . . . . Kicked . | . . . . . Crushed . | . . . . . Highest Temperature 60 | . 60 45 . . Average Temperature 18 | . 17 22 . . Received Heat Transfer 42 | . 42 . . . Siege Activations . | . . . . . Martial Activations . | . . . . . Shielding Activations . | . . . . . Robots Disrupted . | . . . . . Combat Hostiles . | . . . . . Robots Corrupted . | . . . . . Combat Hostiles . | . . . . . Parts Fried 1 | . . . . 1 Impact Corruptions 3 | . . . . 3 Robots Melted . | . . . . . Combat Hostiles . | . . . . . Parts Melted 1 | . 1 . . . Heat Transferred 1332 | . 592 740 . . Parts Sabotaged . | . . . . . Parts Stolen . | . . . . . Parts Stripped . | . . . . . Power Chain Reactions . | . . . . . Alert | -11 -10 -10 -10 -9 ------- Run | Yrd Mat Min Exi Min Maximum Alert Level . | . . . . . Low Security (%) 100 | 100 100 100 . 100 Level 1 . | . . . . . Level 2 . | . . . . . Level 3 . | . . . . . Level 4 . | . . . . . Level 5 . | . . . . . High Security . | . . . . . Max Security . | . . . . . Peak Influence 199 | 5 199 35 . 5 Initial 19 | . . 19 . . Average 85 | . 116 11 . . Influence Increases 636 | 5 510 116 . 5 Destroy 0b10 Robot/C 320 | . 280 40 . . Destroy 0b10 Robot/NC 35 | 5 15 10 . 5 Destroy Leader 62 | . 52 10 . . Successful Hack 26 | . 26 . . . Select Force Hacks 60 | . 60 . . . Disable Machine 15 | . . 15 . . Destroy Structure 43 | . 2 41 . . Lose Combat Pursuer 75 | . 75 . . . Influence Decreases 636 | 5 460 166 . 5 Entered New Map 31 | . . 31 . . Time Decay 584 | 5 460 114 . 5 Lost Part 21 | . . 21 . . Squads Dispatched 4 | . 4 . . . Investigation 2 | . 2 . . . Extermination . | . . . . . Reinforcement 2 | . 2 . . . Assault . | . . . . . Garrison . | . . . . . Intercept . | . . . . . Searches Triggered . | . . . . . Construction Impeded . | . . . . . Haulers Reinforced . | . . . . . Active Scanning Responses . | . . . . . Cargo Convoy Interrupts . | . . . . . Stealth | -11 -10 -10 -10 -9 --------- Run | Yrd Mat Min Exi Min Distress Signals 4 | . 4 . . . Communications Jammed . | . . . . . Distress Signals . | . . . . . Times Spotted 57 | . 30 23 . 4 Peak Tracking Total 6 | . 5 6 . 4 Tactical Retreats 5 | . 4 1 . . Traps | -11 -10 -10 -10 -9 ------- Run | Yrd Mat Min Exi Min Traps Triggered . | . . . . . Indirectly . | . . . . . Trap Hack Attempts . | . . . . . Triggered . | . . . . . Disarmed . | . . . . . Reprogrammed . | . . . . . Reused . | . . . . . Traps Extracted . | . . . . . Installed . | . . . . . Triggered . | . . . . . Machines | -11 -10 -10 -10 -9 ---------- Run | Yrd Mat Min Exi Min Machines Disabled 1 | . . 1 . . Max in Single Turn 1 | . . 1 . . Machines Repaired . | . . . . . Machines Dismantled . | . . . . . Machines Sabotaged . | . . . . . Overloaded Fab Kills . | . . . . . Hacking | -11 -10 -10 -10 -9 --------- Run | Yrd Mat Min Exi Min Machines Accessed 7 | . 5 1 1 . Terminals 3 | . 3 . . . Fabricators . | . . . . . Repair Stations . | . . . . . Recycling Units 2 | . 2 . . . Scanalyzers . | . . . . . Garrison Access . | . . . . . Total Hacks 15 | . 9 1 5 . Successful 12 | . 6 1 5 . Failed 3 | . 3 . . . Catastrophic . | . . . . . Database Lockouts . | . . . . . Manual 8 | . 8 . . . Terminals 7 | . 7 . . . Fabricators . | . . . . . Repair Stations . | . . . . . Recycling Units 2 | . 2 . . . Scanalyzers . | . . . . . Garrison Access . | . . . . . Terminal Hacks 10 | . 4 1 5 . Record 5 | . . . 5 . Robot Analysis 2 | . 2 . . . Prototype ID Bank 1 | . 1 . . . Open Door 1 | . . 1 . . Hauler Manifests 1 | . 1 . . . Fabricator Hacks . | . . . . . Repair Station Hacks . | . . . . . Recycling Unit Hacks . | . . . . . Scanalyzer . | . . . . . Garrison Access Hacks . | . . . . . Unauthorized Hacks 2 | . 2 . . . Terminals . | . . . . . Fabricators . | . . . . . Repair Stations . | . . . . . Recycling Units 2 | . 2 . . . Tunnel 2 | . 2 . . . Scanalyzers . | . . . . . Garrison Access . | . . . . . Data Cores Recovered 1 | . 1 . . . Used . | . . . . . Hacking Detections 3 | . 3 . . . Full Trace Events . | . . . . . Feedback Events . | . . . . . Feedback Blocked . | . . . . . Robot Schematics Acquired . | . . . . . Robots Built . | . . . . . Authchips . | . . . . . Time . | . . . . . Total Robot Build Rating . | . . . . . Part Schematics Acquired . | . . . . . Parts Built . | . . . . . Authchips . | . . . . . Time . | . . . . . Total Part Build Rating . | . . . . . Part Studies Acquired . | . . . . . Parts Repaired . | . . . . . Time . | . . . . . Parts Recycled . | . . . . . Recycled Matter . | . . . . . Retrieved Matter . | . . . . . Retrieved Components . | . . . . . Parts Scanalyzed . | . . . . . Part Schematics Acquired . | . . . . . Parts Damaged . | . . . . . Bothacking | -11 -10 -10 -10 -9 ------------ Run | Yrd Mat Min Exi Min Used RIF Installer . | . . . . . Robots Hacked . | . . . . . Non-combat . | . . . . . Combat . | . . . . . Robot Hacks Applied . | . . . . . Relay Couplers Released . | . . . . . Fabnet Peak Effective % . | . . . . . Robots Rewired . | . . . . . Allies Hacked . | . . . . . Hacks Repelled . | . . . . . Allies | -11 -10 -10 -10 -9 -------- Run | Yrd Mat Min Exi Min Total Allies . | . . . . . Largest Group . | . . . . . Highest-Rated Group . | . . . . . Highest-Rated Ally . | . . . . . Total Orders . | . . . . . Ally Attacks 1 | . . . . 1 Total Damage . | . . . . . Kills . | . . . . . Allies Corrupted . | . . . . . Allies Melted . | . . . . . Intel | -11 -10 -10 -10 -9 ------- Run | Yrd Mat Min Exi Min Active Infowar (turns) 465 | 10 455 . . . Seismic 465 | 10 455 . . . Robot Analysis Total 2 | . 2 . . . Derelict Logs Recovered 1 | . . 1 . . Drone Launches 1 | . . . . 1 Drone Recoveries . | . . . . . Exploration | -11 -10 -10 -10 -9 ------------- Run | Yrd Mat Min Exi Min Turns Passed 1848 | 54 1190 328 195 81 Spaces Moved 1220 | 31 681 192 250 66 Core 193 | . . 45 142 6 Treads 338 | . 255 83 . . Legs 457 | 31 426 . . . Wheels 232 | . . 64 108 60 Hover . | . . . . . Flight . | . . . . . Fastest Speed 50 | 120 120 50 50 50 Average Speed 118 | 120 134 124 74 104 Slowest Speed 240 | 120 160 240 110 110 Overloaded Moves . | . . . . . Propulsion Burnouts . | . . . . . Robots Hopped . | . . . . . Potential Cave-ins . | . . . . . Cave-ins Triggered . | . . . . . Exploration Rate (%) 44 | 4 92 49 61 16 Regions Visited 4 Branch Regions 3 Pre-discovered Areas 3 | . 2 . 1 . Known Exits Taken . | . . . . . Unknown Exits Taken 4 | 1 1 1 1 . Scrap Searched . | . . . . . Spaces Dug 2 | . 2 . . . Terrain Destroyed 59 | . 2 57 . . Melee 2 | . 2 . . . Projectile 3 | . . 3 . . AOE 54 | . . 54 . . Terrain Rammed . | . . . . . Walls Destroyed . | . . . . . Machines Disabled . | . . . . . Actions | -11 -10 -10 -10 -9 --------- Run | Yrd Mat Min Exi Min Total 1458 | 37 859 232 257 73 Wait 31 | . 28 2 . 1 Move 1216 | 30 680 191 249 66 Hop . | . . . . . Pick Up 29 | . 24 2 3 . Fast Attach 8 | 1 4 1 1 1 Attach 4 | . . 1 3 . Detach 2 | . 2 . . . Swap 24 | . 21 3 . . Drop 37 | . 31 3 1 2 Fire 100 | 6 65 29 . . Melee 7 | . 4 . . 3 Ram . | . . . . . Kick . | . . . . . Crush . | . . . . . Escape Stasis . | . . . . . Rewire . | . . . . . Trap . | . . . . . Miscellaneous . | . . . . . Route ------- -11/Scrapyard -10/Materials (discovered 5 exits: [*Mat x3] / *Min x2) -10/Mines (discovered 2 exits: [*Mat] / *Exi) -10/Exiles -9/Mines History --------- Turn | Location | Event 1 | -11/Scrapyard | Discovered new exit (range 3) 55 | -11/Scrapyard | Entered Materials 348 | -10/Materials | Discovered new exit (range 16) 493 | -10/Materials | Discovered new exit (range 16) 494 | -10/Materials | Build established: Scavenger-Mutant 632 | -10/Materials | Discovered new exit (range 9) 755 | -10/Materials | Discovered new exit (range 14) 1087 | -10/Materials | Discovered new exit (range 11) 1097 | -10/Materials | Build established: Mutant 1245 | -10/Materials | Entered Mines 1279 | -10/Mines | Discovered new exit (range 7) 1334 | -10/Mines | Assembled infested the area 1380 | -10/Mines | Core integrity fell below 50% 1448 | -10/Mines | Found the Drone Emporium 1453 | -10/Mines | Found Prototype Device 1551 | -10/Mines | Released all parts (4) 1565 | -10/Mines | Destroyed 14 combat bots 1571 | -10/Mines | Deemed a non-threat by the Exiles lab entrance 1571 | -10/Mines | Discovered new exit (range 5) 1573 | -10/Mines | Entered Exiles 1579 | -10/Exiles | Lost 3 parts (1p1n1w) 1588 | -10/Exiles | Met 8R-AWN 1595 | -10/Exiles | Met EX-HEX 1610 | -10/Exiles | Met EX-BIN 1616 | -10/Exiles | Met EX-DEC 1618 | -10/Exiles | Learned location of Zion (-7) 1753 | -10/Exiles | Discovered new exit (range 14) 1768 | -10/Exiles | Entered Mines 1840 | -9/Mines | Core integrity fell below 20% 1843 | -9/Mines | Released all parts (3) 1847 | -9/Mines | Identified Bomb Drone Bay 1849 | -9/Mines | Core destroyed Last Messages --------------- 01794_ Destroyed Wheel. 01794_ K-01 Serf system corrupted by crushing effect. 01794_ Wheel fried. 01794_ K-01 Serf destroyed. 01794_ T-07 Excavator is excavating. 01797_ Acquired 14 matter. 01798_ T-07 Excavator is excavating. 01839_ Dropped Rigged Nuclear Core. 01843_ Wheel destroyed. 01843_ Released Hammer. 01843_ Released Hcp. Matter Pod. 01843_ Released Lrg. Storage Unit. 01846_ Dropped Prototype Device. 01847_ Acquired Prototype Device. 01847_ Identified Bomb Drone Bay. 01849_ Bomb Drone released from Bomb Drone Bay. 01849_ Bomb Drone sneak attacks. 01849_ Bomb Drone detonates. 01849_ Bomb Drone destroyed. Map ----- +----------------------------------------------------+ | ????????????????????????????????????????????? | | ????????????????????????????????????????????? | | ????????????????????????????????????????????? | | ????????????????????????????????????????????? | | ????????????????????????????????????????????? | | ?????????????????????????????????? ?????????? | | ?????????????????????????????????? ?????????? | | ?????????????????????????????????? ?????????? | | ?????????????????????????????????? ???####??? | | ?????????????????????????????????? ### #??? | | ??????????????????????? ?????????? ???? | | ??????????????????????? ????????? #???? | | ????????????????????????? ######?? ##??? | | ?????????????????????????? #?? ##?? | | ??????????????????????????? #?? ##? | | ????????????????????????????# #??# #? | | ????????????????????????????#t #### #? | | ???????????????????????????## #? | | ?????????????????????????### #? | | ????????????????????????## % #?? | | ???????????????????????## * #??? | | ??????????????????????## ## #???? | | ????????????????????### !/! ##?# ##???? | | ???????????????????## ### ##???###????? | | ???????????????????# s #?####???????????? | | ???????????????????# @ ?????????????????? | | ???????????????????# #######??????????? | | ???????????????????## ######?????? | | ????????????????????## #?????? | | ?????????????????????# ### """#?????? | | ?????????????????????# # ???# """#?????? | | ?????????????????????# #?????# """#?????? | | ?????????????????????# #?????# #?????? | | ?????????????????????# #?#############?????? | | ?????????????????????# ### ##????????????? | | ?????????????????????# ###??????????? | | ?????????????????????# ##?????????? | | ?????????????????????###### #?????????? | | ??????????????????????????#### #??????? | | ?????????????????????????????## #??????? | | ???????????????????????????????# # #??????? | | ????????????????????????????????###??#??????? | | ????????????????????????????????????????????? | | ????????????????????????????????????????????? | | ????????????????????????????????????????????? | | ????????????????????????????????????????????? | | ????????????????????????????????????????????? | | | | | | | +----------------------------------------------------+ Best States ------------- Heat Dissipation 47 Energy Generation 10 Energy Capacity 250 Matter Stores 375 Matter Capacity 500 Sight Range 16 Terrain Scan Density 10 Evasion (%) 55 Recoil Reduction 2 Item Schematics ----------------- None Robot Schematics ------------------ None Fabricated ------------ Nothing Repaired ---------- Nothing Studied --------- None Alien Tech Used ----------------- None Achievements -------------- Exterminator Challenges ------------ None Game ------ Seed SupercompositeHardcellMatrix Manual? 0 Play Time 00:24:08 Cumulative 542.3 hours Start 2025.11.08 @ 21:31:07 End 2025.11.08 @ 22:02:26 Sessions 1 Manual Loads 0 Difficulty Rogue Special Mode None Game No. 160 Rogue 121 Adventurer 0 Explorer 39 Win Type - Total 15 Types 12/1/1/1/0/0/0/0/0/0 Lore% 73 Gallery% 73 Achievement% 49 Wizard Run 0 Options --------- Layout 2 ASCII 1 Keyboard 1 Movement Arrows Keybinds 0 Fullscreen 1 Font 24/Smallcaps Map View 50x44 Zoom Use 0% Tactical HUD 1 Map Filters NONE Filters NONE Steam 1 RUN: 118b8f16-3f3c-4e96-96c6-d1c13172ca27